fUST/lending_fUST_20250421
["ID","MTS","AMOUNT","RATE_DAILY","PERIOD"]
[358522694,1745230245188,-500.0,0.00019178,2]
[358522695,1745230245198,-500.0,0.00019178,2]
[358522696,1745230245207,-500.0,0.00019178,2]
[358522697,1745230245218,-500.0,0.00019178,2]
[358522698,1745230245228,-500.0,0.00019178,2]
[358522699,1745230245237,-500.0,0.00019178,2]
[358522700,1745230245247,-500.0,0.00019178,2]
[358522701,1745230245256,-604.52,0.00019178,2]
[358522702,1745230245266,-500.0,0.00019178,2]
[358522703,1745230245277,-500.0,0.00019178,2]
[358522704,1745230245286,-500.0,0.00019178,2]
[358522705,1745230245296,-500.0,0.00019178,2]
[358522706,1745230245306,-500.0,0.00019178,2]
[358522707,1745230245316,-548.21,0.00019178,2]
[358522708,1745230245326,-500.0,0.00019178,2]
[358522709,1745230245336,-500.0,0.00019178,2]
[358522710,1745230245345,-500.0,0.00019178,2]
[358522711,1745230245355,-500.0,0.00019178,2]
[358522712,1745230245365,-500.0,0.00019178,2]
[358522713,1745230245375,-500.0,0.00019178,2]
[358522714,1745230245384,-506.53988071,0.00019178,2]
[358522715,1745230245394,-500.0,0.00019178,2]
[358522716,1745230245403,-500.0,0.00019178,2]
[358522717,1745230245412,-592.75,0.00019178,2]
[358522718,1745230245422,-500.0,0.00019178,2]
[358522719,1745230245432,-500.0,0.00019178,2]
[358522720,1745230245442,-500.0,0.00019178,2]
[358522721,1745230245452,-500.0,0.00019178,2]
[358522722,1745230245462,-549.55,0.00019178,2]
[358522723,1745230245472,-500.0,0.00019178,2]
[358522724,1745230245482,-500.0,0.00019178,2]
[358522725,1745230245492,-500.0,0.00019178,2]
[358522726,1745230245502,-540.68,0.00019178,2]
[358522727,1745230245513,-500.0,0.00019178,2]
[358522728,1745230245523,-500.0,0.00019178,2]
[358522729,1745230245532,-500.0,0.00019178,2]
[358522730,1745230245542,-500.0,0.00019178,2]
[358522731,1745230245552,-500.0,0.00019178,2]
[358522732,1745230245562,-500.0,0.00019178,2]
[358522733,1745230245574,-500.0,0.00019178,2]
[358522734,1745230245584,-500.0,0.00019178,2]
[358522735,1745230245595,-1655.03,0.00019178,2]
[358522736,1745230245605,-500.0,0.00019178,2]
[358522737,1745230245616,-500.0,0.00019178,2]
[358522738,1745230245626,-500.0,0.00019178,2]
[358522739,1745230245636,-500.0,0.00019178,2]
[358522740,1745230245646,-500.0,0.00019178,2]
[358522741,1745230245656,-814.04,0.00019178,2]
[358522742,1745230245666,-556.43,0.00019178,2]
[358522743,1745230245677,-500.0,0.00019178,2]
[358522744,1745230245688,-500.0,0.00019178,2]
[358522745,1745230245698,-500.0,0.00019178,2]
[358522746,1745230245708,-500.0,0.00019178,2]
[358522747,1745230245720,-500.0,0.00019178,2]
[358522748,1745230245730,-500.0,0.00019178,2]
[358522749,1745230245740,-500.0,0.00019178,2]
[358522750,1745230245751,-500.0,0.00019178,2]
[358522751,1745230245763,-500.0,0.00019178,2]
[358522752,1745230245773,-503.42978271,0.00019178,2]
[358522753,1745230245782,-500.0,0.00019178,2]
[358522754,1745230245793,-500.0,0.00019178,2]
[358522755,1745230245804,-500.0,0.00019178,2]
[358522756,1745230245814,-1181.57,0.00019178,2]
[358522757,1745230245824,-500.0,0.00019178,2]
[358522758,1745230245834,-500.0,0.00019178,2]
[358522759,1745230245844,-500.0,0.00019178,2]
[358522760,1745230245854,-501.15000892,0.00019178,2]
[358522761,1745230245865,-500.0,0.00019178,2]
[358522762,1745230245875,-500.0,0.00019178,2]
[358522763,1745230245885,-500.0,0.00019178,2]
[358522764,1745230245895,-500.0,0.00019178,2]
[358522765,1745230245906,-500.0,0.00019178,2]
[358522766,1745230245919,-500.0,0.00019178,2]
[358522767,1745230245930,-500.0,0.00019178,2]
[358522768,1745230245940,-500.0,0.00019178,2]
[358522769,1745230245950,-500.0,0.00019178,2]
[358522770,1745230245961,-500.0,0.00019178,2]
[358522771,1745230245971,-500.0,0.00019178,2]
[358522772,1745230245981,-500.0,0.00019178,2]
[358522773,1745230245991,-500.0,0.00019178,2]
[358522774,1745230246002,-500.0,0.00019178,2]
[358522775,1745230246013,-500.0,0.00019178,2]
[358522776,1745230246023,-500.0,0.00019178,2]
[358522777,1745230246033,-500.0,0.00019178,2]
[358522779,1745230246043,-500.0,0.00019178,2]
[358522780,1745230246053,-500.0,0.00019178,2]
[358522782,1745230246064,-500.0,0.00019178,2]
[358522784,1745230246074,-500.0,0.00019178,2]
[358522785,1745230246084,-337.80828055,0.00019178,2]
[358522787,1745230246094,-531.92,0.00019178,2]
[358522789,1745230246106,-500.0,0.00019178,2]
[358522790,1745230246116,-500.0,0.00019178,2]
[358522792,1745230246127,-500.0,0.00019178,2]
[358522794,1745230246138,-500.0,0.00019178,2]
[358522796,1745230246148,-500.0,0.00019178,2]
[358522797,1745230246159,-500.0,0.00019178,2]
[358522799,1745230246169,-500.0,0.00019178,2]
[358522801,1745230246180,-500.0,0.00019178,2]
[358522803,1745230246192,-500.0,0.00019178,2]
[358522806,1745230246203,-500.0,0.00019178,2]
[358522808,1745230246213,-500.0,0.00019178,2]
[358522811,1745230246224,-541.47,0.00019178,2]
[358522814,1745230246235,-500.0,0.00019178,2]
[358522816,1745230246246,-500.0,0.00019178,2]
[358522818,1745230246256,-595.70007167,0.00019178,2]
[358522821,1745230246278,-500.0,0.00019178,2]
[358522822,1745230246288,-500.0,0.00019178,2]
[358522824,1745230246300,-151.0,0.00019178,2]
[358522826,1745230246311,-500.0,0.00019178,2]
[358522828,1745230246321,-300.0,0.00019178,2]
[358522830,1745230246332,-4237.62809071,0.00019329,2]
[358522832,1745230246342,-500.0,0.0001938,2]
[358522833,1745230246352,-500.0,0.00019452,2]
[358522834,1745230246362,-500.0,0.00019452,2]
[358522835,1745230246373,-500.0,0.00019452,2]
[358522836,1745230246383,-500.0,0.00019452,2]
[358522837,1745230246393,-160.56,0.00019452,2]
[358522838,1745230246404,-500.0,0.00019452,2]
[358522840,1745230246417,-500.0,0.00019452,2]
[358522843,1745230246428,-500.0,0.00019452,2]
[358522845,1745230246438,-500.0,0.00019452,2]
[358522847,1745230246448,-200.79,0.00019452,2]
[358522850,1745230246458,-500.0,0.00019452,2]
[358522853,1745230246468,-500.0,0.00019452,2]
[358522856,1745230246478,-390.89,0.00019452,2]
[358522858,1745230246488,-444.32,0.00019452,2]
[358522860,1745230246497,-370.37,0.00019452,2]
[358522862,1745230246508,-462.48,0.00019452,2]
[358522864,1745230246517,-531.09,0.00019452,2]
[358522866,1745230246527,-413.91,0.00019452,2]
[358522868,1745230246536,-224.65,0.00019452,2]
[358522870,1745230246546,-511.03318985,0.00019452,2]
[358522871,1745230246556,-173.24,0.00019452,2]
[358522873,1745230246566,-471.27,0.00019452,2]
[358522875,1745230246576,-255.4,0.00019452,2]
[358522877,1745230246587,-177.49,0.00019452,2]
[358522878,1745230246597,-500.0,0.00019452,2]
[358522879,1745230246607,-248.86,0.00019452,2]
[358522880,1745230246616,-500.0,0.00019452,2]
[358522881,1745230246626,-500.0,0.00019452,2]
[358522882,1745230246636,-500.0,0.00019452,2]
[358522883,1745230246646,-500.0,0.00019452,2]
[358522884,1745230246656,-362.01,0.00019452,2]
[358522885,1745230246666,-500.0,0.00019452,2]
[358522887,1745230246676,-500.0,0.00019452,2]
[358522888,1745230246686,-500.0,0.00019452,2]
[358522889,1745230246696,-500.0,0.00019452,2]
[358522890,1745230246706,-500.0,0.00019452,2]
[358522891,1745230246719,-500.0,0.00019452,2]
[358522892,1745230246730,-500.0,0.00019452,2]
[358522893,1745230246740,-500.0,0.00019452,2]
[358522894,1745230246750,-500.0,0.00019452,2]
[358522895,1745230246762,-467.04,0.00019452,2]
[358522896,1745230246772,-500.0,0.00019452,2]
[358522897,1745230246782,-500.0,0.00019452,2]
[358522898,1745230246794,-500.0,0.00019452,2]
[358522899,1745230246803,-500.0,0.00019452,2]
[358522900,1745230246814,-500.0,0.00019452,2]
[358522901,1745230246824,-645.3107709,0.00019452,2]
[358522902,1745230246833,-500.0,0.00019452,2]
[358522903,1745230246843,-500.0,0.00019452,2]
[358522904,1745230246853,-488.04,0.00019452,2]
[358522905,1745230246863,-425.42,0.00019452,2]
[358522906,1745230246872,-500.0,0.00019452,2]
[358522907,1745230246884,-500.0,0.00019452,2]
[358522910,1745230246897,-611.94,0.00019452,2]
[358522912,1745230246908,-500.0,0.00019452,2]
[358522914,1745230246918,-632.94719093,0.00019452,2]
[358522917,1745230246928,-500.0,0.00019452,2]
[358522919,1745230246938,-500.0,0.00019452,2]
[358522921,1745230246948,-500.0,0.00019452,2]
[358522923,1745230246958,-173.61,0.00019452,2]
[358522926,1745230246971,-601.82625599,0.00019452,2]
[358522927,1745230246981,-508.52,0.00019452,2]
[358522928,1745230246991,-535.22,0.00019452,2]
[358522929,1745230247003,-500.0,0.00019452,2]
[358522930,1745230247013,-500.0,0.00019452,2]
[358522931,1745230247022,-500.0,0.00019452,2]
[358522932,1745230247032,-534.38,0.00019452,2]
[358522933,1745230247042,-402.7,0.00019452,2]
[358522934,1745230247052,-500.0,0.00019452,2]
[358522935,1745230247063,-500.0,0.00019452,2]
[358522936,1745230247073,-500.0,0.00019452,2]
[358522937,1745230247083,-437.92,0.00019452,2]
[358522938,1745230247093,-500.0,0.00019452,2]
[358522939,1745230247103,-500.0,0.00019452,2]
[358522940,1745230247113,-500.0,0.00019452,2]
[358522941,1745230247123,-500.0,0.00019452,2]
[358522942,1745230247133,-500.0,0.00019452,2]
[358522943,1745230247144,-500.0,0.00019452,2]
[358522944,1745230247153,-1655.03,0.00019452,2]
[358522945,1745230247164,-500.0,0.00019452,2]
[358522946,1745230247175,-222.92,0.00019452,2]
[358522947,1745230247185,-500.0,0.00019452,2]
[358522948,1745230247195,-814.04,0.00019452,2]
[358522949,1745230247205,-500.0,0.00019452,2]
[358522950,1745230247215,-500.0,0.00019452,2]
[358522951,1745230247225,-500.0,0.00019452,2]
[358522952,1745230247236,-1181.57,0.00019452,2]
[358522953,1745230247246,-437.24,0.00019452,2]
[358522954,1745230247257,-326.17,0.00019452,2]
[358522955,1745230247267,-501.59,0.00019452,2]
[358522956,1745230247278,-500.0,0.00019452,2]
[358522957,1745230247288,-500.0,0.00019452,2]
[358522958,1745230247298,-286.61,0.00019452,2]
[358522959,1745230247308,-262.24,0.00019452,2]
[358522960,1745230247318,-500.0,0.00019452,2]
[358522961,1745230247329,-500.0,0.00019452,2]
[358522962,1745230247340,-500.0,0.00019452,2]
[358522963,1745230247350,-431.2,0.00019452,2]
[358522964,1745230247360,-500.0,0.00019452,2]
[358522965,1745230247371,-500.0,0.00019452,2]
[358522966,1745230247383,-500.0,0.00019452,2]
[358522967,1745230247394,-475.88,0.00019452,2]
[358522968,1745230247405,-500.0,0.00019452,2]
[358522969,1745230247417,-150.28,0.00019725,2]
[358522970,1745230247429,-176.84,0.00019726,2]
[358522971,1745230247441,-631.17522833,0.00019726,2]
[358522972,1745230247453,-407.8,0.00019726,2]
[358522973,1745230247464,-500.0,0.00019726,2]
[358522974,1745230247478,-500.0,0.00019726,2]
[358522975,1745230247649,-312.82,0.00019726,2]
[358522976,1745230247659,-167.45,0.00019726,2]
[358522977,1745230247669,-500.0,0.00019726,2]
[358522978,1745230247679,-500.0,0.00019726,2]
[358522979,1745230247688,-454.39,0.00019726,2]
[358522980,1745230247697,-500.0,0.00019726,2]
[358522981,1745230247707,-500.0,0.00019726,2]
[358522982,1745230247722,-500.0,0.00019726,2]
[358522983,1745230247732,-582.86,0.00019726,2]
[358522984,1745230247741,-500.0,0.00019726,2]
[358522985,1745230247753,-198.61,0.00019726,2]
[358522986,1745230247769,-203.09,0.00019726,2]
[358522987,1745230247779,-500.0,0.00019726,2]
[358522988,1745230247789,-500.0,0.00019726,2]
[358522989,1745230247798,-289.02,0.00019726,2]
[358522990,1745230247808,-500.0,0.00019726,2]
[358522991,1745230247818,-224.6,0.00019726,2]
[358522992,1745230247827,-1655.03,0.00019726,2]
[358522993,1745230247837,-222.76,0.00019726,2]
[358522994,1745230247847,-814.04,0.00019726,2]
[358522995,1745230247857,-355.3,0.00019726,2]
[358522996,1745230247868,-1181.57,0.00019726,2]
[358522997,1745230247877,-500.0,0.00019726,2]
[358522998,1745230247888,-629.28,0.00019726,2]
[358522999,1745230247897,-500.0,0.00019726,2]
[358523000,1745230247907,-500.0,0.00019726,2]
[358523001,1745230247916,-500.0,0.00019726,2]
[358523002,1745230247926,-500.0,0.00019726,2]
[358523003,1745230247936,-500.0,0.00019726,2]
[358523004,1745230247946,-160.0,0.00019743,2]
[358523005,1745230247955,-160.0,0.00019743,2]
[358523006,1745230247966,-250.0,0.00019826,2]
[358523007,1745230247976,-402.0,0.00019996,2]
[358523008,1745230247986,-1000.0,0.0002,2]
[358523009,1745230247996,-500.0,0.0002,2]
[358523010,1745230248006,-500.0,0.0002,2]
[358523011,1745230248016,-500.0,0.0002,2]
[358523012,1745230248027,-500.0,0.0002,2]
[358523013,1745230248037,-500.0,0.0002,2]
[358523014,1745230248047,-500.0,0.0002,2]
[358523015,1745230248057,-500.0,0.0002,2]
[358523016,1745230248067,-500.0,0.0002,2]
[358523017,1745230248078,-500.0,0.0002,2]
[358523018,1745230248089,-500.0,0.0002,2]
[358523019,1745230248099,-500.0,0.0002,2]
[358523020,1745230248109,-1655.03,0.0002,2]
[358523021,1745230248119,-814.04,0.0002,2]
[358523022,1745230248129,-1181.57,0.0002,2]
[358523023,1745230248140,-500.0,0.0002,2]
[358523024,1745230248151,-500.0,0.0002,2]
[358523025,1745230248161,-500.0,0.0002,2]
[358523026,1745230248171,-500.0,0.0002,2]
[358523027,1745230248181,-500.0,0.0002,2]
[358523028,1745230248191,-500.0,0.00020273,2]
[358523029,1745230248201,-500.0,0.00020273,2]
[358523030,1745230248211,-500.0,0.00020273,2]
[358523031,1745230248222,-500.0,0.00020273,2]
[358523032,1745230248232,-500.0,0.00020273,2]
[358523033,1745230248242,-500.0,0.00020273,2]
[358523034,1745230248252,-500.0,0.00020273,2]
[358523035,1745230248264,-500.0,0.00020273,2]
[358523036,1745230248275,-500.0,0.00020273,2]
[358523037,1745230248285,-500.0,0.00020273,2]
[358523038,1745230248295,-500.0,0.00020273,2]
[358523039,1745230248305,-1655.03,0.00020273,2]
[358523040,1745230248316,-814.04,0.00020273,2]
[358523041,1745230248326,-1181.57,0.00020273,2]
[358523042,1745230248336,-500.0,0.00020273,2]
[358523043,1745230248346,-500.0,0.00020273,2]
[358523044,1745230248356,-500.0,0.00020273,2]
[358523045,1745230248366,-500.0,0.00020273,2]
[358523046,1745230248376,-500.0,0.00020273,2]
[358523047,1745230248386,-207.4,0.00020382,2]
[358523048,1745230248397,-151.0,0.00020382,2]
[358523049,1745230248407,-2000.0,0.00020508,4]
[358523050,1745230248417,-500.0,0.00020547,2]
[358523051,1745230248426,-500.0,0.00020547,2]
[358523052,1745230248436,-500.0,0.00020547,2]
[358523053,1745230248445,-377.22879402,0.00020547,2]
[358523054,1745230248455,-500.0,0.00020547,2]
[358523055,1745230248465,-500.0,0.00020547,2]
[358523056,1745230248475,-500.0,0.00020547,2]
[358523057,1745230248485,-500.0,0.00020547,2]
[358523058,1745230248495,-500.0,0.00020547,2]
[358523059,1745230248506,-500.0,0.00020547,2]
[358523060,1745230248516,-500.0,0.00020547,2]
[358523061,1745230248526,-1655.03,0.00020547,2]
[358523062,1745230248536,-814.04,0.00020547,2]
[358523063,1745230248546,-1181.57,0.00020547,2]
[358523064,1745230248555,-500.0,0.00020547,2]
[358523065,1745230248565,-500.0,0.00020547,2]
[358523066,1745230248575,-500.0,0.00020547,2]
[358523067,1745230248585,-559.38205147,0.00020547,2]
[358523068,1745230248595,-500.0,0.00020547,2]
[358523069,1745230248604,-500.0,0.000206,2]
[358523070,1745230248614,-500.0,0.000206,2]
[358523071,1745230248624,-614.76248425,0.000206,2]
[358523072,1745230248633,-500.0,0.000206,2]
[358523073,1745230248643,-420.0,0.00020791,2]
[358523074,1745230248653,-500.0,0.00020821,2]
[358523075,1745230248663,-500.0,0.00020821,2]
[358523076,1745230248673,-500.0,0.00020821,2]
[358523077,1745230248682,-500.0,0.00020821,2]
[358523078,1745230248692,-182.46433869,0.00020821,2]
[358523079,1745230248701,-500.0,0.00020821,2]
[358523080,1745230248713,-500.0,0.00020821,2]
[358523081,1745230248725,-500.0,0.00020821,2]
[358523082,1745230248735,-500.0,0.00020821,2]
[358523083,1745230248744,-500.0,0.00020821,2]
[358523084,1745230248754,-1655.03,0.00020821,2]
[358523085,1745230248765,-814.04,0.00020821,2]
[358523086,1745230248774,-1181.57,0.00020821,2]
[358523087,1745230248786,-500.0,0.00020821,2]
[358523088,1745230248798,-500.0,0.00020821,2]
[358523089,1745230248808,-500.0,0.00020821,2]
[358523090,1745230248818,-500.0,0.00020821,2]
[358523091,1745230248828,-600.0,0.00020822,2]
[358523092,1745230248838,-420.0,0.00020892,2]
[358523093,1745230248848,-7377.99609907,0.000209,3]
[358523094,1745230248858,-151.0,0.0002093,2]
[358523095,1745230248868,-157.32,0.00021,2]
[358523096,1745230248878,-298.14825296,0.00021095,2]
[358523097,1745230248888,-500.0,0.00021095,2]
[358523098,1745230248898,-500.0,0.00021095,2]
[358523099,1745230248908,-500.0,0.00021095,2]
[358523100,1745230248919,-500.0,0.00021095,2]
[358523101,1745230248929,-500.0,0.00021095,2]
[358523102,1745230248939,-500.0,0.00021095,2]
[358523103,1745230248950,-500.0,0.00021095,2]
[358523104,1745230248960,-500.0,0.00021095,2]
[358523105,1745230248970,-1655.03,0.00021095,2]
[358523106,1745230248979,-814.04,0.00021095,2]
[358523107,1745230248989,-1181.57,0.00021095,2]
[358523108,1745230249000,-500.0,0.00021095,2]
[358523109,1745230249010,-500.0,0.00021095,2]
[358523110,1745230249020,-500.0,0.00021095,2]
[358523111,1745230249029,-500.0,0.00021095,2]
[358523112,1745230249040,-3018.12118145,0.00021155,2]
[358523113,1745230249049,-500.0,0.00021167,2]
[358523114,1745230249059,-500.0,0.00021167,2]
[358523115,1745230249069,-500.0,0.00021167,2]
[358523116,1745230249079,-500.0,0.00021167,2]
[358523117,1745230249088,-500.0,0.00021167,2]
[358523118,1745230249098,-500.0,0.00021167,2]
[358523119,1745230249108,-500.0,0.00021167,2]
[358523120,1745230249117,-500.0,0.00021167,2]
[358523121,1745230249128,-500.0,0.00021167,2]
[358523122,1745230249138,-500.0,0.00021167,2]
[358523123,1745230249147,-525.26568606,0.00021167,2]
[358523124,1745230249158,-500.0,0.00021167,2]
[358523125,1745230249168,-504.00046597,0.00021167,2]
[358523126,1745230249178,-503.85880325,0.00021167,2]
[358523127,1745230249187,-499.999996,0.0002128,2]
[358523128,1745230249197,-500.0,0.00021369,2]
[358523129,1745230249207,-500.0,0.00021369,2]
[358523130,1745230249217,-222.78813988,0.00021369,2]
[358523131,1745230249227,-500.0,0.00021369,2]
[358523132,1745230249237,-500.0,0.00021369,2]
[358523133,1745230249249,-500.0,0.00021369,2]
[358523134,1745230249259,-500.0,0.00021369,2]
[358523135,1745230249269,-500.0,0.00021369,2]
[358523136,1745230249279,-1655.03,0.00021369,2]
[358523137,1745230249289,-814.04,0.00021369,2]
[358523138,1745230249299,-1181.57,0.00021369,2]
[358523139,1745230249309,-500.0,0.00021369,2]
[358523140,1745230249319,-484.46878,0.00021369,2]
[358523141,1745230249329,-500.0,0.00021369,2]
[358523142,1745230249339,-500.0,0.00021369,2]
[358523143,1745230249349,-151.0,0.00021478,2]
[358523144,1745230249359,-500.0,0.00021643,2]
[358523145,1745230249368,-622.43228657,0.00021643,2]
[358523146,1745230249378,-500.0,0.00021643,2]
[358523147,1745230249388,-500.0,0.00021643,2]
[358523148,1745230249398,-500.0,0.00021643,2]
[358523149,1745230249408,-500.0,0.00021643,2]
[358523150,1745230249417,-500.0,0.00021643,2]
[358523151,1745230249427,-1655.03,0.00021643,2]
[358523152,1745230249437,-814.04,0.00021643,2]
[358523153,1745230249447,-1181.57,0.00021643,2]
[358523154,1745230249457,-500.0,0.00021643,2]
[358523155,1745230249468,-500.0,0.00021643,2]
[358523156,1745230249478,-500.0,0.00021643,2]
[358523157,1745230249488,-500.67228974,0.0002168,2]
[358523158,1745230249499,-500.0,0.0002168,2]
[358523159,1745230249510,-500.0,0.0002168,2]
[358523160,1745230249522,-500.0,0.0002168,2]
[358523161,1745230249532,-500.0,0.0002168,2]
[358523162,1745230249541,-160.0,0.00021762,3]
[358523163,1745230249551,-160.0,0.00021762,3]
[358523164,1745230249561,-550.99338192,0.00021762,3]
[358523165,1745230249570,-7377.99609898,0.00021762,3]
[358523166,1745230249579,-500.0,0.00021917,2]
[358523167,1745230249589,-500.0,0.00021917,2]
[358523168,1745230249599,-500.0,0.00021917,2]
[358523169,1745230249609,-500.0,0.00021917,2]
[358523170,1745230249619,-500.0,0.00021917,2]
[358523171,1745230249629,-500.0,0.00021917,2]
[358523172,1745230249638,-1655.03,0.00021917,2]
[358523173,1745230249648,-814.04,0.00021917,2]
[358523174,1745230249658,-1181.57,0.00021917,2]
[358523175,1745230249667,-500.0,0.00021917,2]
[358523176,1745230249677,-500.0,0.00021917,2]
[358523177,1745230249687,-500.0,0.00021917,2]
[358523178,1745230249697,-284.95090042,0.00021918,2]
[358523179,1745230249706,-160.0,0.00022012,2]
[358523180,1745230249720,-160.0,0.00022012,2]
[358523181,1745230249729,-420.65680271,0.00022016,2]
[358523182,1745230249739,-729.16666667,0.00022016,2]
[358523183,1745230249749,-151.0,0.00022026,2]
[358523184,1745230249759,-500.0,0.00022191,2]
[358523185,1745230249769,-500.0,0.00022191,2]
[358523186,1745230249780,-500.0,0.00022191,2]
[358523187,1745230249790,-500.0,0.00022191,2]
[358523188,1745230249801,-500.0,0.00022191,2]
[358523189,1745230249812,-500.0,0.00022191,2]
[358523190,1745230249821,-1655.03,0.00022191,2]
[358523191,1745230249832,-814.04,0.00022191,2]
[358523192,1745230249842,-1181.57,0.00022191,2]
[358523193,1745230249852,-500.0,0.00022191,2]
[358523194,1745230249862,-500.0,0.00022191,2]
[358523195,1745230249871,-500.0,0.00022191,2]
[358523196,1745230249881,-601.10146246,0.00022465,2]
[358523197,1745230249891,-500.0,0.00022465,2]
[358523198,1745230249901,-500.0,0.00022465,2]
[358523199,1745230249911,-591.70158068,0.00022465,2]
[358523200,1745230249921,-500.0,0.00022465,2]
[358523201,1745230249931,-500.0,0.00022465,2]
[358523202,1745230249941,-1655.03,0.00022465,2]
[358523203,1745230249951,-814.04,0.00022465,2]
[358523204,1745230249960,-1181.57,0.00022465,2]
[358523205,1745230249970,-500.0,0.00022465,2]
[358523206,1745230249980,-500.0,0.00022465,2]
[358523207,1745230249989,-500.0,0.00022465,2]
[358523208,1745230249999,-900.0,0.00022466,2]
[358523209,1745230250008,-633.0,0.000225,2]
[358523210,1745230250018,-151.0,0.00022574,2]
[358523211,1745230250027,-7377.99609898,0.00022624,4]
[358523212,1745230250072,-587.0,0.00022661,2]
[358523213,1745230250082,-500.0,0.00022739,2]
[358523214,1745230250091,-500.0,0.00022739,2]
[358523215,1745230250101,-646.06509067,0.00022739,2]
[358523216,1745230250111,-172.0113847,0.00022739,2]
[358523217,1745230250121,-1655.03,0.00022739,2]
[358523218,1745230250131,-814.04,0.00022739,2]
[358523219,1745230250141,-1181.57,0.00022739,2]
[358523220,1745230250151,-500.0,0.00022739,2]
[358523221,1745230250161,-500.0,0.00022739,2]
[358523222,1745230250170,-500.0,0.00022739,2]
[358523223,1745230250180,-840.76328314,0.000228,2]
[358523224,1745230250190,-587.0,0.00022881,2]
[358523225,1745230250200,-184.81056854,0.000229,2]
[358523226,1745230250210,-160.0,0.00023,3]
[358523227,1745230250219,-420.65680271,0.00023,3]
[358523228,1745230250229,-160.0,0.00023,3]
[358523229,1745230250238,-591.54,0.00023013,2]
[358523230,1745230250248,-500.0,0.00023013,2]
[358523231,1745230250258,-1655.03,0.00023013,2]
[358523232,1745230250269,-814.04,0.00023013,2]
[358523233,1745230250279,-1181.57,0.00023013,2]
[358523234,1745230250289,-500.0,0.00023013,2]
[358523235,1745230250298,-500.0,0.00023013,2]
[358523236,1745230250308,-500.0,0.00023013,2]
[358523237,1745230250318,-151.0,0.00023122,2]
[358523238,1745230250327,-1370.35,0.000232,2]
[358523239,1745230250337,-1000.0,0.00023205,2]
[358523240,1745230250347,-419.92,0.00023205,2]
[358523241,1745230250357,-500.0,0.00023287,2]
[358523242,1745230250366,-1655.03,0.00023287,2]
[358523243,1745230250376,-814.04,0.00023287,2]
[358523244,1745230250386,-1181.57,0.00023287,2]
[358523245,1745230250396,-500.0,0.00023287,2]
[358523246,1745230250406,-500.0,0.00023287,2]
[358523247,1745230250415,-500.0,0.00023287,2]
[358523248,1745230250425,-7377.99609898,0.00023486,4]
[358523249,1745230250435,-500.0,0.00023561,2]
[358523250,1745230250444,-1655.03,0.00023561,2]
[358523251,1745230250454,-814.04,0.00023561,2]
[358523252,1745230250465,-1181.57,0.00023561,2]
[358523253,1745230250475,-500.0,0.00023561,2]